bitfinex-derivatives/quotes_BTCF0:USTF0_20241128
["timestamp","ask_amount","ask_price","bid_price","bid_amount"]
[1732766524502,0.14604531,95435.0,95433.0,0.3608]
[1732766524708,0.09370331,95434.0,95433.0,0.3608]
[1732766524906,0.09370331,95434.0,95433.0,0.3618]
[1732766525301,0.052342,95435.0,95433.0,0.3618]
[1732766525494,0.052342,95435.0,95433.0,0.3608]
[1732766525715,0.059342,95435.0,95433.0,0.3618]
[1732766526613,0.18431393,95435.0,95433.0,0.3618]
[1732766526811,0.18431393,95435.0,95425.0,0.02026577]
[1732766526812,0.18431393,95435.0,95412.0,0.2455]
[1732766526813,0.052353,95413.0,95412.0,0.2455]
[1732766526997,0.05236,95401.0,95400.0,0.35082342]
[1732766527309,0.05236,95401.0,95400.0,0.1]
[1732766527310,0.54673333,95401.0,95400.0,0.1]
[1732766527703,0.42172102,95401.0,95400.0,0.1]
[1732766528007,0.41316,95401.0,95400.0,0.1]
[1732766528410,0.41316,95401.0,95382.0,0.0647]
[1732766528411,0.05237,95383.0,95382.0,0.0647]
[1732766528600,0.41317,95383.0,95382.0,0.0647]
[1732766529206,0.41317,95383.0,95382.0,0.0318]
[1732766530207,0.41417,95383.0,95382.0,0.0408]
[1732766530607,0.41417,95383.0,95382.0,0.0458]
[1732766530608,0.41517,95383.0,95382.0,0.0458]
[1732766530907,0.002,95383.0,95382.0,0.412691]
[1732766531205,0.052367,95390.0,95388.0,0.052367]
[1732766532412,0.053367,95390.0,95388.0,0.060367]
[1732766533705,0.054367,95390.0,95388.0,0.060367]
[1732766534510,0.054367,95390.0,95388.0,0.008]
[1732766538911,0.00068,95401.0,95398.0,0.052362]
[1732766539118,0.12482083,95412.0,95398.0,0.052362]
[1732766539119,0.3608,95410.0,95398.0,0.052362]
[1732766539319,0.3608,95410.0,95395.0,0.052363]
[1732766539320,0.05236,95401.0,95395.0,0.052363]
[1732766539621,0.3608,95410.0,95394.0,0.3608]
[1732766539622,0.052359,95403.0,95400.0,0.05236]
[1732766539814,0.052359,95403.0,95401.0,0.0314]
[1732766540014,0.052359,95403.0,95401.0,0.08376]
[1732766540216,0.052359,95403.0,95401.0,0.0314]
[1732766540816,0.052359,95403.0,95401.0,0.08376]
[1732766541024,0.052359,95403.0,95401.0,0.08776]
[1732766542115,0.00849101,95402.0,95401.0,0.09176]
[1732766542614,0.36929101,95402.0,95401.0,0.09176]
[1732766542815,0.36929101,95402.0,95401.0,0.0394]
[1732766543019,0.36929101,95402.0,95401.0,0.008]
[1732766546823,0.36929101,95402.0,95401.0,0.06036]
[1732766547221,0.36929101,95402.0,95401.0,0.008]
[1732766547618,0.3608,95402.0,95401.0,0.008]
[1732766547818,0.36933397,95402.0,95401.0,0.008]
[1732766548025,0.41316,95402.0,95401.0,0.008]
[1732766552629,0.50677562,95402.0,95401.0,0.008]
[1732766553431,0.3608,95402.0,95401.0,0.008]
[1732766553726,0.31746083,95407.0,95405.0,0.052358]
[1732766553932,0.244997,95407.0,95405.0,0.052358]
[1732766554325,0.36981783,95407.0,95405.0,0.052358]
[1732766554525,0.052357,95407.0,95405.0,0.052358]
[1732766555032,0.052357,95407.0,95405.0,0.055358]
[1732766555421,0.17717783,95407.0,95405.0,0.055358]
[1732766556125,0.3608,95410.0,95405.0,0.003]
[1732766556328,0.12482083,95413.0,95406.0,0.314864]
[1732766556523,0.12482083,95422.0,95412.0,0.3608]
[1732766556723,0.12482083,95426.0,95424.0,0.052347]
[1732766557023,0.12482083,95426.0,95421.0,0.3608]
[1732766557024,0.12482083,95433.0,95423.0,0.25088897]
[1732766557319,0.0327,95447.0,95431.0,0.052344]
[1732766557320,0.00846784,95432.0,95431.0,0.052344]
[1732766558523,0.00846784,95432.0,95431.0,0.366704]
[1732766558721,0.01746784,95432.0,95431.0,0.367704]
[1732766560137,0.00012294,95457.0,95456.0,0.05233]
[1732766561435,0.00212294,95457.0,95456.0,0.06933]
[1732766561736,0.05445194,95457.0,95456.0,0.06933]
[1732766561940,0.00212294,95457.0,95456.0,0.06933]
[1732766564231,0.00112294,95457.0,95456.0,0.06033]
[1732766564535,0.00012294,95457.0,95456.0,0.37761]
[1732766565237,0.00012294,95457.0,95456.0,0.06333]
[1732766565425,0.00012294,95457.0,95456.0,0.37761]
[1732766566240,0.00012294,95457.0,95456.0,0.06333]
[1732766566831,0.413121,95473.0,95456.0,0.06333]
[1732766566832,0.3608,95473.0,95472.0,0.052321]
[1732766567927,0.3608,95473.0,95472.0,0.05241511]
[1732766568128,0.3608,95473.0,95472.0,0.07041511]
[1732766568730,0.3608,95473.0,95472.0,0.06141511]
[1732766568936,0.0326,95485.0,95484.0,0.052315]
[1732766569144,0.18624,95492.0,95484.0,0.052315]
[1732766569327,0.18624,95492.0,95485.0,0.052314]
[1732766569533,0.0524197,95491.0,95485.0,0.052314]
[1732766570337,0.0001087,95491.0,95490.0,0.052311]
[1732766570543,0.0001087,95491.0,95490.0,0.413111]
[1732766571240,0.1,95500.0,95499.0,0.052306]
[1732766571440,0.1,95500.0,95499.0,0.413106]
[1732766571743,0.1,95500.0,95499.0,0.727226]
[1732766572134,0.01144086,95500.0,95499.0,0.727226]
[1732766573438,0.01144086,95500.0,95499.0,0.730226]
[1732766574030,0.01144086,95500.0,95499.0,0.734226]
[1732766575543,0.00011359,95524.0,95522.0,0.052293]
[1732766577548,0.00011359,95524.0,95523.0,0.00010762]
[1732766579139,0.00011359,95524.0,95523.0,0.00110762]
[1732766580133,0.00011359,95524.0,95523.0,0.36190762]
[1732766580338,0.00011359,95524.0,95523.0,0.67594762]
[1732766580537,0.0309,95553.0,95552.0,0.052277]
[1732766580939,0.0309,95553.0,95551.0,0.3608]
[1732766580940,0.3608,95561.0,95556.0,0.052275]
[1732766581137,0.3608,95561.0,95551.0,0.3608]
[1732766581336,0.0311,95563.0,95551.0,0.3608]
[1732766581542,0.0311,95563.0,95562.0,0.052272]
[1732766582742,0.0311,95563.0,95562.0,0.061272]
[1732766583247,0.3608,95577.0,95562.0,0.018]
[1732766583433,0.05235424,95578.0,95572.0,0.3608]
[1732766583434,0.03119024,95578.0,95572.0,0.3608]
[1732766583634,0.03119024,95578.0,95577.0,0.052264]
[1732766583635,9.024e-05,95578.0,95577.0,0.052264]
[1732766585447,0.052265,95575.0,95573.0,7.482e-05]
[1732766586247,9.024e-05,95578.0,95560.0,0.13518979]
[1732766586248,0.5406,95574.0,95560.0,0.11502832]
[1732766586438,0.5406,95574.0,95547.0,0.3608]
[1732766586439,0.3608,95566.0,95547.0,0.3608]
[1732766586635,0.3608,95557.0,95541.0,0.052283]
[1732766586840,0.3608,95557.0,95547.0,0.11502832]
[1732766587148,0.3608,95557.0,95555.0,0.052275]
[1732766587336,0.413075,95557.0,95556.0,0.00010672]
[1732766588850,0.052275,95557.0,95556.0,0.00010672]
[1732766589850,0.232027,95572.0,95566.0,0.05227]
[1732766590054,0.232027,95572.0,95567.0,0.052269]
[1732766590356,0.232027,95572.0,95562.0,0.11502832]
[1732766590357,0.031,95575.0,95568.0,0.3608]
[1732766590541,0.033,95577.0,95568.0,0.3608]
[1732766590542,0.033,95577.0,95576.0,0.052264]
[1732766590853,0.033,95577.0,95576.0,0.413064]
[1732766591443,0.3608,95588.0,95576.0,0.413064]
[1732766591645,0.0312,95591.0,95576.0,0.413064]
[1732766592251,0.052257,95590.0,95576.0,0.413064]
[1732766592452,0.0312,95591.0,95576.0,0.413064]
[1732766592453,0.052258,95588.0,95576.0,0.413064]
[1732766592753,0.052258,95588.0,95576.0,0.414064]
[1732766592957,0.052258,95588.0,95576.0,0.415064]
[1732766593251,0.0312,95591.0,95576.0,0.415064]
[1732766594547,0.0312,95591.0,95577.0,0.01305011]
[1732766594747,0.0312,95591.0,95576.0,0.415064]
[1732766594951,0.0312,95591.0,95589.0,0.052257]
[1732766595155,0.0312,95591.0,95589.0,0.413057]
[1732766596451,0.0312,95591.0,95589.0,0.422057]
[1732766596653,0.0312,95591.0,95589.0,0.431057]
[1732766599144,0.083456,95591.0,95589.0,0.3788]
[1732766599355,0.083456,95591.0,95589.0,0.018]
[1732766599644,0.083456,95591.0,95567.0,0.3608]
[1732766599954,0.052263,95578.0,95573.0,0.052266]
[1732766600153,0.052263,95578.0,95574.0,0.052265]
[1732766600548,0.3608,95585.0,95567.0,0.38171756]
[1732766600749,0.0312,95591.0,95579.0,0.3608]
[1732766601057,0.3608,95587.0,95567.0,0.3608]
[1732766601257,0.3608,95587.0,95557.0,0.3608]
[1732766601258,0.3608,95569.0,95557.0,0.3608]
[1732766601560,0.3608,95569.0,95556.0,0.00010672]
[1732766601561,0.052274,95558.0,95556.0,0.00010672]
[1732766602761,0.0319,95557.0,95556.0,0.00010672]
[1732766603259,0.0319,95557.0,95556.0,0.00810672]
[1732766604145,0.001,95558.0,95557.0,0.052275]
[1732766604361,0.052275,95557.0,95556.0,0.00810672]
[1732766605558,0.052275,95557.0,95556.0,0.00710672]
[1732766606358,0.058275,95557.0,95556.0,0.00110672]
[1732766606552,0.095675,95557.0,95556.0,0.00110672]
[1732766607960,0.089675,95557.0,95556.0,0.00010672]
[1732766608157,0.090675,95557.0,95556.0,0.00110672]
[1732766608353,0.095675,95557.0,95556.0,0.00110672]
[1732766608555,0.089675,95557.0,95556.0,0.00010672]
[1732766608758,0.095675,95557.0,95556.0,0.00110672]
[1732766608960,0.011,95557.0,95556.0,0.00110672]
[1732766609166,0.011,95557.0,95556.0,0.00210672]
[1732766609851,0.006,95557.0,95556.0,0.00110672]
[1732766610057,0.01,95557.0,95556.0,0.00110672]
[1732766611357,0.004,95557.0,95556.0,0.00010672]
[1732766611553,0.011,95557.0,95556.0,0.00110672]
[1732766612259,0.006,95557.0,95556.0,0.00110672]
[1732766612561,0.011,95557.0,95556.0,0.00110672]
[1732766614366,0.006,95557.0,95556.0,0.00110672]
[1732766614555,0.01,95557.0,95556.0,0.00110672]
[1732766614955,0.01,95557.0,95556.0,0.00010672]
[1732766615163,0.006,95557.0,95556.0,0.00110672]
[1732766615363,0.01,95557.0,95556.0,0.00110672]
[1732766615855,0.004,95557.0,95556.0,0.00010672]
[1732766616163,0.01,95557.0,95556.0,0.00110672]
[1732766616964,0.0419,95557.0,95556.0,0.00110672]
[1732766618163,0.06202532,95557.0,95556.0,0.00110672]
[1732766618665,0.03012532,95557.0,95556.0,0.00110672]
[1732766619167,0.01,95557.0,95556.0,0.00110672]
[1732766619559,0.052283,95541.0,95540.0,0.3608]
[1732766620358,0.052286,95537.0,95531.0,0.052288]
[1732766620560,0.05228,95547.0,95532.0,0.0001106]
[1732766620756,0.3608,95538.0,95532.0,0.0001106]
[1732766621163,0.052286,95536.0,95532.0,0.0001106]
[1732766621368,0.052286,95536.0,95532.0,0.0523986]
[1732766621563,0.052286,95536.0,95533.0,0.052287]
[1732766621966,0.052287,95534.0,95532.0,0.0001106]
[1732766623373,0.056287,95534.0,95532.0,0.0001106]
[1732766623860,0.004,95534.0,95532.0,0.0001106]
[1732766624061,0.006,95534.0,95532.0,0.0523986]
[1732766624859,0.058288,95534.0,95532.0,0.0001106]
[1732766627264,0.006,95534.0,95532.0,0.0523986]
[1732766627463,0.006,95534.0,95532.0,0.0001106]
[1732766627671,0.058287,95534.0,95532.0,0.0001106]
[1732766627974,0.006,95534.0,95532.0,0.0523986]
[1732766630162,0.006,95534.0,95533.0,0.0327]
[1732766630671,0.006,95534.0,95533.0,0.3935]
[1732766630878,0.006,95534.0,95533.0,0.5790461]
[1732766631176,0.00012452,95539.0,95538.0,0.052285]
[1732766631475,0.12482083,95558.0,95552.0,0.052277]
[1732766631668,0.12482083,95558.0,95553.0,0.052277]
[1732766632070,0.052276,95555.0,95553.0,0.052277]
[1732766632980,0.12482083,95558.0,95555.0,0.052275]
[1732766633274,0.12482083,95558.0,95556.0,0.052275]
[1732766633577,0.006,95555.0,95553.0,0.001]
[1732766634377,0.006,95555.0,95553.0,0.053277]
[1732766635380,0.12482083,95556.0,95553.0,0.052277]
[1732766635676,0.052276,95554.0,95553.0,0.052277]
[1732766637079,0.12882083,95556.0,95545.0,0.07287006]
[1732766637378,0.05228,95547.0,95545.0,0.07287006]
[1732766638172,0.05228,95547.0,95545.0,0.02058906]
[1732766638372,0.3608,95550.0,95536.0,0.00157006]
[1732766638580,0.3608,95550.0,95540.0,0.11462895]
[1732766638880,0.3608,95550.0,95548.0,0.052279]
[1732766639679,0.3628,95550.0,95548.0,0.052279]
[1732766640873,0.3608,95555.0,95554.0,0.052276]
[1732766641277,0.12482083,95557.0,95549.0,0.11462895]
[1732766641278,0.12482083,95557.0,95556.0,0.052275]
[1732766641483,0.15621491,95563.0,95556.0,0.052275]
[1732766641484,0.12482083,95558.0,95556.0,0.052275]
[1732766641782,0.12482083,95558.0,95551.0,0.3608]
[1732766641783,0.12482083,95559.0,95558.0,0.052274]
[1732766641985,0.12482083,95562.0,95551.0,0.3608]
[1732766642171,0.12482083,95560.0,95559.0,0.052273]
[1732766642372,0.12482083,95560.0,95553.0,0.052277]
[1732766642569,0.052276,95555.0,95553.0,0.052277]
[1732766642976,0.12511632,95555.0,95553.0,0.052277]
[1732766643678,0.003,95557.0,95556.0,0.052275]
[1732766644279,0.003,95560.0,95554.0,0.0306]
[1732766644583,0.006,95560.0,95559.0,0.052274]
[1732766645483,0.003,95560.0,95559.0,0.052274]
[1732766646277,0.3608,95561.0,95559.0,0.052274]
[1732766646475,0.003,95560.0,95559.0,0.052274]
[1732766647080,0.006,95560.0,95559.0,0.053274]
[1732766647386,0.006,95560.0,95559.0,0.414074]
[1732766647587,0.00011953,95568.0,95567.0,0.052269]
[1732766647794,0.00011953,95568.0,95567.0,0.413069]
[1732766647983,0.00011953,95568.0,95567.0,0.726989]
[1732766648289,0.12512864,95584.0,95567.0,0.726989]
[1732766648290,0.12512864,95590.0,95586.0,0.052259]
[1732766648494,0.0302,95592.0,95567.0,0.726989]
[1732766648495,0.0302,95592.0,95591.0,0.052256]
[1732766648881,0.12497327,95594.0,95593.0,0.052255]
[1732766649077,0.08847206,95600.0,95588.0,0.3608]
[1732766649078,0.12497327,95597.0,95588.0,0.3608]
[1732766649387,0.08847206,95600.0,95598.0,0.052252]
[1732766650582,0.08847206,95600.0,95599.0,0.0324]
[1732766650788,0.08847206,95600.0,95599.0,0.0626]
[1732766651688,0.08847206,95600.0,95599.0,0.3764]
[1732766652585,0.08847206,95600.0,95599.0,0.4157]
[1732766653086,0.08847206,95600.0,95599.0,0.4247]
[1732766654083,0.08847206,95600.0,95599.0,0.1109]
[1732766656088,0.02081504,95619.0,95605.0,0.052248]
[1732766656282,0.3608,95625.0,95605.0,0.413048]
[1732766657688,0.11462895,95620.0,95605.0,0.431048]
[1732766657891,0.05224,95620.0,95605.0,0.431048]
[1732766658082,0.3608,95625.0,95605.0,0.431048]
[1732766658791,0.02054416,95620.0,95605.0,0.431048]
[1732766659288,0.3608,95625.0,95605.0,0.431048]
[1732766659493,0.413038,95625.0,95605.0,0.431048]
[1732766659693,0.3608,95625.0,95605.0,0.431048]
[1732766659890,0.3608,95625.0,95605.0,0.605248]
[1732766660092,0.413038,95625.0,95605.0,0.605248]
[1732766660794,0.413038,95625.0,95605.0,0.431048]
[1732766660996,0.413038,95625.0,95605.0,0.605248]
[1732766660997,0.3608,95625.0,95605.0,0.605248]
[1732766661294,0.052238,95624.0,95605.0,0.605248]
[1732766661798,0.033,95630.0,95629.0,0.052235]
[1732766662188,0.033,95630.0,95629.0,0.413035]
[1732766662494,0.0531766,95630.0,95629.0,0.413035]
[1732766662896,0.033,95630.0,95629.0,0.413035]
[1732766664288,0.033,95630.0,95629.0,0.417035]
[1732766664695,0.033,95630.0,95629.0,0.422035]
[1732766664892,0.033,95630.0,95629.0,0.3698]
[1732766664893,0.085235,95630.0,95629.0,0.3698]
[1732766665093,0.085235,95630.0,95629.0,0.3678]
[1732766665289,0.085235,95630.0,95629.0,0.3768]
[1732766665796,0.033,95630.0,95629.0,0.3768]
[1732766665998,0.033,95630.0,95629.0,0.3788]
[1732766666895,0.033,95630.0,95629.0,0.3698]
[1732766667098,0.3938,95630.0,95629.0,0.018]
[1732766667299,0.3938,95630.0,95615.0,0.052243]
[1732766667497,0.052242,95617.0,95615.0,0.052243]
[1732766667689,0.052239,95623.0,95619.0,0.05224]
[1732766668007,0.3938,95630.0,95619.0,0.05224]
[1732766668008,0.05224,95621.0,95619.0,0.05224]
[1732766669403,0.05224,95621.0,95619.0,0.07321291]
[1732766670509,0.05224,95621.0,95615.0,0.002]
[1732766670510,0.052242,95616.0,95615.0,0.002]
[1732766670897,0.052242,95616.0,95615.0,0.001]
[1732766671389,0.3608,95621.0,95614.0,0.02009629]
[1732766671594,0.3608,95621.0,95619.0,0.001]
[1732766671595,0.05224,95620.0,95619.0,0.001]
[1732766672401,0.3608,95621.0,95615.0,0.002]
[1732766672402,0.061242,95616.0,95615.0,0.002]
[1732766672895,0.061242,95616.0,95615.0,0.001]
[1732766673097,0.052242,95616.0,95614.0,0.052243]
[1732766674597,0.060242,95616.0,95615.0,0.001]
[1732766674901,0.066242,95616.0,95615.0,0.002]
[1732766675403,0.066242,95616.0,95615.0,0.001]
[1732766675602,0.066242,95616.0,95614.0,0.054243]
[1732766675794,0.058242,95616.0,95614.0,0.053243]
[1732766675996,0.066242,95616.0,95615.0,0.001]
[1732766676411,0.066242,95616.0,95615.0,0.002]
[1732766676899,0.014,95616.0,95615.0,0.002]
[1732766677695,0.014,95616.0,95615.0,0.18825724]
[1732766678005,0.066242,95616.0,95615.0,0.18826328]
[1732766678303,0.066242,95616.0,95615.0,0.002]
[1732766679203,0.066242,95616.0,95615.0,0.18938397]
[1732766679505,0.066242,95616.0,95615.0,0.002]
[1732766681395,0.19121527,95616.0,95615.0,0.002]
[1732766681801,0.066242,95616.0,95615.0,0.002]
[1732766682309,0.19121527,95616.0,95615.0,0.002]
[1732766682500,0.066242,95616.0,95615.0,0.002]
[1732766683504,0.014,95616.0,95615.0,0.002]
[1732766683709,0.014,95616.0,95615.0,0.3628]
[1732766683910,0.066242,95616.0,95615.0,0.002]
[1732766684496,0.058242,95616.0,95615.0,0.001]
[1732766684808,0.19021527,95616.0,95615.0,0.002]
[1732766685209,0.065242,95616.0,95615.0,0.002]
[1732766685518,0.007,95616.0,95615.0,0.25101031]
[1732766685704,0.007,95616.0,95615.0,0.3628]
[1732766685705,0.10694362,95616.0,95615.0,0.3628]
[1732766685900,0.013,95616.0,95615.0,0.415043]
[1732766686598,0.10693939,95616.0,95615.0,0.415043]
[1732766686803,0.013,95616.0,95615.0,0.415043]
[1732766688607,0.10693969,95616.0,95615.0,0.415043]
[1732766688807,0.013,95616.0,95615.0,0.415043]
[1732766689108,0.10694188,95616.0,95615.0,0.415043]
[1732766689312,0.013,95616.0,95615.0,0.415043]
[1732766689808,0.013,95616.0,95615.0,0.4248428]
[1732766691507,0.013,95616.0,95615.0,0.415043]
[1732766691707,0.10694188,95616.0,95615.0,0.415043]
[1732766692204,0.013,95616.0,95615.0,0.415043]
[1732766693208,0.013,95616.0,95615.0,0.42484269]
[1732766695109,0.013,95616.0,95615.0,0.415043]
[1732766695309,0.013,95616.0,95615.0,0.42484266]
[1732766696307,0.09394188,95623.0,95615.0,0.42484266]
[1732766696505,0.09394188,95624.0,95622.0,0.052239]
[1732766696705,0.09394188,95624.0,95623.0,0.37059966]
[1732766696905,0.12497327,95628.0,95623.0,0.37059966]
[1732766697106,0.51701491,95634.0,95624.0,0.1969914]
[1732766697305,0.20844691,95635.0,95632.0,0.052233]
[1732766698416,0.052233,95634.0,95632.0,0.052233]
[1732766698713,0.052233,95634.0,95632.0,0.02078535]
[1732766698913,0.15621491,95635.0,95631.0,0.052234]
[1732766699108,0.15621491,95635.0,95626.0,0.18719174]
[1732766699109,0.052235,95629.0,95627.0,0.052236]
[1732766699416,0.12520876,95628.0,95627.0,0.052236]
[1732766699916,0.3026494,95628.0,95627.0,0.052236]
[1732766700312,0.052236,95627.0,95626.0,0.18719174]
[1732766700608,0.052237,95625.0,95615.0,0.24955368]
[1732766700814,0.052237,95625.0,95601.0,0.30180368]
[1732766700815,0.3608,95616.0,95601.0,0.30180368]
[1732766701111,0.09391593,95604.0,95602.0,0.05225]
[1732766701408,0.09391037,95603.0,95602.0,0.05225]
[1732766701608,0.33043993,95615.0,95597.0,0.28255368]
[1732766701609,0.17746774,95607.0,95597.0,0.28255368]
[1732766701811,0.17746874,95606.0,95604.0,0.052249]
[1732766702315,0.33043993,95615.0,95598.0,0.052252]
[1732766702316,0.052252,95599.0,95598.0,0.052252]
[1732766702521,0.14615979,95599.0,95597.0,0.033]
[1732766702814,0.052253,95597.0,95596.0,0.00056]
[1732766703017,0.052256,95591.0,95590.0,0.28165368]
[1732766703209,0.14616894,95591.0,95590.0,0.0321]
[1732766703409,0.09391294,95593.0,95591.0,0.052256]
[1732766703607,0.09391294,95594.0,95593.0,0.052255]
[1732766704308,0.09391294,95595.0,95593.0,0.052255]
[1732766704709,0.052254,95594.0,95592.0,0.3608]
[1732766704915,0.052255,95592.0,95590.0,0.05271117]
[1732766705218,0.14612276,95592.0,95590.0,0.10496717]
[1732766705419,0.052255,95592.0,95590.0,0.10496717]
[1732766706022,0.09386776,95593.0,95590.0,0.05271117]
[1732766706219,0.09386776,95594.0,95592.0,0.052255]
[1732766706531,0.09490779,95599.0,95590.0,0.05271117]
[1732766706532,0.09386776,95597.0,95596.0,0.052253]
[1732766706716,0.09386776,95598.0,95596.0,0.052253]
[1732766706918,0.09390779,95599.0,95597.0,0.3608]
[1732766706919,0.18771833,95599.0,95597.0,0.3608]
[1732766707120,0.09390779,95599.0,95598.0,0.052252]
[1732766707816,0.09390779,95599.0,95598.0,0.30145598]
[1732766708319,0.09390779,95599.0,95598.0,0.052252]
[1732766709622,0.09490779,95599.0,95598.0,0.052252]
[1732766711121,0.09490779,95599.0,95598.0,0.06205377]
[1732766711911,0.09490779,95599.0,95598.0,0.052252]
[1732766712622,0.001,95599.0,95598.0,0.052252]
[1732766713925,0.001,95599.0,95597.0,0.3608]
[1732766713926,0.14706254,95599.0,95597.0,0.3608]
[1732766714125,0.14706254,95599.0,95589.0,0.00012658]
[1732766714126,0.052256,95591.0,95589.0,0.00012658]
[1732766715226,0.09381054,95592.0,95591.0,0.052256]
[1732766715530,0.09381054,95592.0,95589.0,0.00112658]
[1732766715531,0.09381054,95595.0,95593.0,0.052255]
[1732766715929,0.09381054,95595.0,95589.0,0.00212658]
[1732766715930,0.052256,95592.0,95589.0,0.00212658]
[1732766716131,0.052256,95591.0,95589.0,0.00212658]
[1732766716320,0.052256,95591.0,95590.0,0.052257]
[1732766716523,0.052252,95598.0,95594.0,0.052254]
[1732766716727,0.052252,95598.0,95595.0,0.052254]
[1732766717122,0.09373149,95597.0,95595.0,0.052254]
[1732766717522,0.14598449,95597.0,95595.0,0.052254]
[1732766717821,0.052255,95594.0,95591.0,0.052256]
[1732766718131,0.052255,95594.0,95592.0,0.052255]
[1732766718735,0.001,95598.0,95589.0,0.00012658]
[1732766718736,0.09373149,95595.0,95589.0,0.00012658]
[1732766719028,0.001,95597.0,95596.0,0.052253]
[1732766719535,0.001,95597.0,95596.0,0.06205516]
[1732766720528,0.052247,95609.0,95596.0,0.00980216]
[1732766720733,0.052247,95609.0,95603.0,0.052249]
[1732766721037,0.09371513,95611.0,95603.0,0.052249]
[1732766721224,0.09371513,95610.0,95603.0,0.052249]
[1732766721923,0.001,95609.0,95603.0,0.052249]
[1732766722334,0.09471513,95609.0,95603.0,0.052249]
[1732766722526,0.052247,95607.0,95603.0,0.07249029]
[1732766723039,0.09471513,95609.0,95603.0,0.02024129]
[1732766723223,0.09471513,95609.0,95594.0,0.3608]
[1732766723224,0.052253,95596.0,95594.0,0.3608]
[1732766723437,0.001,95609.0,95592.0,0.052255]
[1732766723438,0.052255,95594.0,95592.0,0.052255]
[1732766723729,0.052255,95594.0,95592.0,0.07301171]
[1732766724135,0.052255,95594.0,95592.0,0.02075671]
[1732766724341,0.09371513,95597.0,95589.0,0.00012658]
[1732766724342,0.052256,95591.0,95589.0,0.00012658]
[1732766725231,0.052256,95591.0,95589.0,0.02075803]
[1732766725428,0.052256,95591.0,95589.0,0.00012658]
[1732766725634,0.053256,95591.0,95589.0,0.00012658]
[1732766726531,0.09371513,95590.0,95589.0,0.00012658]
[1732766727339,0.053256,95591.0,95589.0,0.00012658]
[1732766727740,0.052256,95591.0,95589.0,0.00012658]
[1732766728036,0.001,95590.0,95589.0,0.00012658]
[1732766728438,0.052256,95591.0,95589.0,0.00012658]
[1732766728737,0.053256,95591.0,95589.0,0.05238358]
[1732766729136,0.001,95590.0,95589.0,0.05238358]
[1732766730829,0.09391481,95597.0,95589.0,0.37602607]
[1732766731032,0.15651993,95608.0,95596.0,0.413053]
[1732766731033,0.09391481,95598.0,95596.0,0.413053]
[1732766731240,0.09391481,95598.0,95597.0,0.04040249]
[1732766731432,0.09391481,95598.0,95597.0,0.28977043]
[1732766731627,0.09391481,95600.0,95597.0,0.27996794]
[1732766731832,0.3608,95613.0,95600.0,0.052251]
[1732766731833,0.09391481,95601.0,95600.0,0.052251]
[1732766732235,0.09391481,95601.0,95600.0,0.66228967]
[1732766732441,0.09391481,95601.0,95600.0,0.413051]
[1732766732734,0.09391481,95610.0,95603.0,0.052249]
[1732766732929,0.09391481,95611.0,95609.0,0.413046]
[1732766733130,0.09391481,95612.0,95611.0,0.052245]
[1732766733331,0.12515729,95618.0,95616.0,0.052242]
[1732766734332,0.052239,95623.0,95618.0,0.052241]
[1732766734333,0.12515729,95620.0,95618.0,0.052241]
[1732766735242,0.36144,95625.0,95610.0,0.0313]
[1732766735243,0.12515729,95621.0,95616.0,0.001]
[1732766735436,0.12515729,95621.0,95620.0,0.05224]
[1732766736145,0.12510835,95621.0,95620.0,0.05224]
[1732766736328,0.43886835,95621.0,95618.0,0.001]
[1732766736533,0.5398,95620.0,95618.0,0.002]
[1732766736830,0.22604,95620.0,95618.0,0.002]
[1732766737139,0.22604,95620.0,95600.0,0.3608]
[1732766737140,0.052251,95601.0,95600.0,0.3608]
[1732766737447,0.052256,95591.0,95589.0,0.00233554]
[1732766737632,0.052256,95591.0,95589.0,0.00169554]
[1732766739041,0.052256,95591.0,95589.0,0.00369554]
[1732766739342,0.052256,95591.0,95589.0,0.00169554]
[1732766739841,0.1773682,95591.0,95589.0,0.00369554]
[1732766740043,0.052256,95591.0,95589.0,0.00369554]
[1732766740233,0.12513139,95590.0,95589.0,0.00369554]
[1732766740639,0.12513139,95590.0,95589.0,0.00169554]
[1732766741248,0.12513139,95590.0,95565.0,0.31282928]
[1732766741249,0.78764,95590.0,95571.0,0.24919562]
[1732766741438,0.09383394,95575.0,95562.0,0.02010239]
[1732766741740,0.7216,95577.0,95564.0,0.052271]
[1732766741741,0.09383394,95565.0,95564.0,0.052271]
[1732766741943,0.09383394,95574.0,95564.0,0.00980555]
[1732766742151,0.09383394,95574.0,95573.0,0.052266]
[1732766742446,0.09383394,95578.0,95573.0,0.00990584]
[1732766742745,0.052265,95575.0,95573.0,0.00010111]
[1732766743044,0.09381145,95577.0,95576.0,0.052264]
[1732766743344,0.052262,95580.0,95576.0,0.052264]
[1732766743538,0.052262,95580.0,95573.0,0.00010111]
[1732766743539,0.052262,95580.0,95578.0,0.052263]
[1732766743741,0.29895192,95581.0,95573.0,0.00010111]
[1732766743742,0.052263,95579.0,95573.0,0.00010111]
[1732766743941,0.29895192,95581.0,95573.0,0.00010111]
[1732766743942,0.0937858,95575.0,95573.0,0.00010111]
[1732766744243,0.052265,95575.0,95573.0,0.00010111]
[1732766744439,0.413065,95575.0,95573.0,0.00010111]
[1732766744733,0.413065,95575.0,95573.0,0.00710111]
[1732766745440,0.413065,95575.0,95573.0,0.01110111]
[1732766745634,0.51892,95574.0,95573.0,0.01110111]
[1732766747844,0.64381006,95574.0,95573.0,0.01110111]
[1732766748240,0.51892,95574.0,95573.0,0.01110111]
[1732766748439,0.64381006,95574.0,95573.0,0.01110111]
[1732766748647,0.34508,95574.0,95573.0,0.01110111]
[1732766748945,0.51892,95574.0,95573.0,0.01110111]
[1732766751948,0.64380395,95574.0,95573.0,0.01110111]
[1732766752445,0.51896,95574.0,95573.0,0.01110111]
[1732766752838,0.052275,95557.0,95556.0,0.0039]